[Event "FIDE World Cup O10-A 2024"]
[Site "Batumi"]
[Date "2024.06.27"]
[Round "5.7"]
[White "Kalinichenko, German Yu"]
[Black "Hummatov, Safa"]
[Result "1/2-1/2"]
[ECO "B28"]
[WhiteElo "1634"]
[BlackElo "1693"]
[Annotator "NA RC"]
[PlyCount "77"]
[EventDate "2024.06.23"]
[EventType "swiss"]
[EventCountry "GEO"]
[SourceTitle "playchess.com"]
[Source "ChessBase"]
[SourceQuality "1"]
[TimeControl "5400+30"]

1. e4 {[%emt 0:00:32]} c5 {[%emt 0:00:04]} 2. Nf3 {[%emt 0:00:08]} a6 {[%emt 0:00:05]} 3. c4 {[%emt 0:00:14]} Nc6 {[%emt 0:00:13]} 4. d4 {[%emt 0:00:08]} cxd4 {[%emt 0:00:05]} 5. Nxd4 {[%emt 0:00:06]} e5 {[%emt 0:00:04]} 6. Nf5 {[%emt 0:00:20]} d5 {[%emt 0:00:11]} 7. cxd5 {[%emt 0:00:59]} Bxf5 {[%emt 0:00:07]} 8. exf5 {[%emt 0:00:13]} Nd4 {[%emt 0:00:02]} 9. Nc3 {[%emt 0:02:58]} Nf6 {[%emt 1:34:09]} 10. Bg5 {[%emt 0:01:43]} Be7 {[%emt 0:00:00]} 11. Bd3 {[%emt 0:03:57]} O-O {[%emt 0:00:00]} 12. Bxf6 {[%emt 0:00:59]} Bxf6 {[%emt 0:00:00]} 13. Be4 {[%emt 0:01:40]} Qb6 {[%emt 0:00:00]} 14. Qd2 {[%emt 0:01:35]} Qd6 {[%emt 0:00:00]} 15. O-O {[%emt 0:04:07]} b5 {[%emt 0:00:00]} 16. Ne2 {[%emt 0:01:22]} Rac8 {[%emt 0:00:00]} 17. Rac1 {[%emt 0:00:27]} h6 {[%emt 0:00:00]} 18. Nxd4 {[%emt 0:04:30]} Rxc1 {[%emt 0:00:00]} 19. Rxc1 {[%emt 0:00:21]} Bg5 {[%emt 0:00:00]} 20. Rc6 {[%emt 0:01:23]} Qxc6 {[%emt 0:00:00]} 21. Nxc6 {[%emt 0:01:06]} Bxd2 {[%emt 0:00:00]} 22. h4 {[%emt 0:00:49]} g5 {[%emt 0:00:00]} 23. fxg6 {[%emt 0:00:20]} f5 {[%emt 0:00:00]} 24. Bc2 {[%emt 0:00:57]} Rf6 {[%emt 0:00:00]} 25. Bb3 {[%emt 0:00:52]} Kg7 {[%emt 0:00:00]} 26. Ne7 {[%emt 0:01:15]} Bb4 {[%emt 0:00:00]} 27. Nc6 {[%emt 0:01:41]} Bd6 {[%emt 0:00:00]} 28. h5 {[%emt 0:00:19]} Rf8 {[%emt 0:00:00]} 29. Kf1 {[%emt 0:01:50]} Rc8 {[%emt 0:00:00]} 30. Bc2 {[%emt 0:00:37]} Kf6 {[%emt 0:00:00]} 31. Ke2 {[%emt 0:00:25]} Rc7 {[%emt 0:00:00]} 32. f3 {[%emt 0:02:36]} Kg5 {[%emt 0:00:00]} 33. Bd3 {[%emt 0:04:10]} Rd7 {[%emt 0:00:00]} 34. Kf2 {[%emt 0:01:39]} Kf6 {[%emt 0:00:00]} 35. Ke2 {[%emt 0:01:39]} Bc5 {[%emt 0:00:00]} 36. Nb8 {[%emt 0:01:02]} Rxd5 {[%emt 0:00:00]} 37. Nxa6 {[%emt 0:00:44]} Bd6 {[%emt 0:00:00]} 38. Bxf5 {[%emt 0:01:07]} Rd4 {[%emt 0:00:00]} 39. b4 {[%emt 0:01:12]} 1/2-1/2

[Event "FIDE World Cup O10-A 2024"]
[Site "Batumi"]
[Date "2024.06.27"]
[Round "5.8"]
[White "Eshkol, Idan"]
[Black "Chkhartishvili, Lazare"]
[Result "1-0"]
[ECO "A01"]
[WhiteElo "1544"]
[BlackElo "1608"]
[Annotator "NA RC"]
[PlyCount "101"]
[EventDate "2024.06.23"]
[EventType "swiss"]
[EventCountry "GEO"]
[SourceTitle "playchess.com"]
[Source "ChessBase"]
[SourceQuality "1"]
[TimeControl "5400+30"]

1. b3 {[%emt 0:00:02]} c5 {[%emt 0:01:29]} 2. Bb2 {[%emt 0:00:04]} Nc6 {[%emt 0:00:07]} 3. e3 {[%emt 0:00:04]} Nf6 {[%emt 0:02:57]} 4. Bb5 {[%emt 0:00:20]} e6 {[%emt 0:00:21]} 5. Bxc6 {[%emt 0:00:11]} bxc6 {[%emt 0:00:06]} 6. f4 {[%emt 0:00:09]} h5 {[%emt 0:14:03]} 7. Nf3 {[%emt 0:04:19]} Be7 {[%emt 0:02:32]} 8. d3 {[%emt 0:01:32]} Nd5 {[%emt 0:05:44]} 9. Qd2 {[%emt 0:04:09]} Bf6 {[%emt 0:02:26]} 10. d4 {[%emt 0:05:52]} cxd4 {[%emt 0:04:57]} 11. e4 {[%emt 0:00:14]} d3 {[%emt 0:08:17]} 12. c3 {[%emt 0:08:54]} Nc7 {[%emt 0:04:48]} 13. e5 {[%emt 0:10:01]} Be7 {[%emt 0:03:39]} 14. Qxd3 {[%emt 0:01:17]} d5 {[%emt 0:02:26]} 15. exd6 {[%emt 0:02:08]} Qxd6 {[%emt 0:00:20]} 16. Qxd6 {[%emt 0:02:10]} Bxd6 {[%emt 0:00:10]} 17. g3 {[%emt 0:12:43]} h4 {[%emt 0:11:20]} 18. Rf1 {[%emt 0:02:04]} hxg3 {[%emt 0:00:21]} 19. hxg3 {[%emt 0:00:04]} Rh3 {[%emt 0:05:41]} 20. Rg1 {[%emt 0:07:53]} Bc5 {[%emt 0:08:04]} 21. Rg2 {[%emt 0:13:18]} Rh1+ {[%emt 0:00:56]} 22. Ke2 {[%emt 0:03:25]} Nd5 {[%emt 0:03:40]} 23. Nbd2 {[%emt 0:00:36]} Rxa1 {[%emt 0:05:18]} 24. Bxa1 {[%emt 0:00:07]} Ba6+ {[%emt 0:01:24]} 25. c4 {[%emt 0:00:12]} f6 {[%emt 0:00:45]} 26. Nd4 {[%emt 0:02:10]} Kd7 {[%emt 0:03:20]} 27. Kf3 {[%emt 0:00:49]} Nc7 {[%emt 0:00:51]} 28. Ne4 {[%emt 0:00:36]} Bxd4 {[%emt 0:00:53]} 29. Bxd4 {[%emt 0:00:25]} Rh8 {[%emt 0:06:53]} 30. Rd2 {[%emt 0:01:00]} Kc8 {[%emt 0:00:35]} 31. Kg2 {[%emt 0:00:35]} Kb8 {[%emt 0:00:38]} 32. Bf2 {[%emt 0:03:09]} Bc8 {[%emt 0:00:47]} 33. Rd6 {[%emt 0:01:03]} Ne8 {[%emt 0:00:08]} 34. Rd8 {[%emt 0:01:34]} Kc7 {[%emt 0:00:18]} 35. Rd2 {[%emt 0:00:31]} f5 {[%emt 0:00:24]} 36. Ng5 {[%emt 0:00:59]} Kb7 {[%emt 0:00:58]} 37. Re2 {[%emt 0:08:39]} Nc7 {[%emt 0:00:32]} 38. Nf7 {[%emt 0:06:12]} Rf8 {[%emt 0:00:34]} 39. Nd6+ {[%emt 0:00:00]} Kb8 {[%emt 0:00:12]} 40. Bd4 {[%emt 0:00:00]} g6 {[%emt 0:00:19]} 41. Rd2 {[%emt 0:00:00]} Bb7 {[%emt 0:00:53]} 42. Kf2 {[%emt 0:00:00]} Ba8 {[%emt 0:00:25]} 43. Ke2 {[%emt 0:00:00]} Na6 {[%emt 0:00:50]} 44. Be5 {[%emt 0:00:27]} Nc7 {[%emt 0:00:06]} 45. Bd4 {[%emt 0:00:35]} Na6 {[%emt 0:00:03]} 46. Kd1 {[%emt 0:01:00]} Nc7 {[%emt 0:00:45]} 47. Kc2 {[%emt 0:00:21]} Rg8 {[%emt 0:01:02]} 48. Kc3 {[%emt 0:02:37]} g5 {[%emt 0:00:26]} 49. Be5 {[%emt 0:00:00]} gxf4 {[%emt 0:00:09]} 50. gxf4 {[%emt 0:00:00]} a5 {[%emt 0:00:45]} 51. Kb2 {[%emt 0:00:00]} 1-0

[Event "FIDE World Cup O10-A 2024"]
[Site "Batumi"]
[Date "2024.06.27"]
[Round "5.9"]
[White "Obado, Sean Adrich"]
[Black "Aryan Mehta"]
[Result "0-1"]
[ECO "B22"]
[WhiteElo "1631"]
[BlackElo "1863"]
[Annotator "NA RC"]
[PlyCount "146"]
[EventDate "2024.06.23"]
[EventType "swiss"]
[EventCountry "GEO"]
[SourceTitle "playchess.com"]
[Source "ChessBase"]
[SourceQuality "1"]
[TimeControl "5400+30"]

1. e4 {[%emt 0:00:01]} c5 {[%emt 0:00:13]} 2. c3 {[%emt 0:00:02]} d5 {[%emt 0:00:12]} 3. exd5 {[%emt 0:00:04]} Qxd5 {[%emt 0:00:06]} 4. d4 {[%emt 0:00:06]} Nc6 {[%emt 0:00:05]} 5. Nf3 {[%emt 0:00:09]} Bf5 {[%emt 0:00:23]} 6. Be3 {[%emt 0:02:43]} cxd4 {[%emt 0:00:12]} 7. cxd4 {[%emt 0:00:45]} Bxb1 {[%emt 0:01:13]} 8. Rxb1 {[%emt 0:03:10]} e6 {[%emt 0:01:11]} 9. a3 {[%emt 0:00:20]} Nf6 {[%emt 0:00:18]} 10. h3 {[%emt 0:03:21]} Bd6 {[%emt 0:01:03]} 11. Qc2 {[%emt 0:03:28]} Rc8 {[%emt 0:05:33]} 12. Bc4 {[%emt 0:03:30]} Nxd4 {[%emt 0:13:06]} 13. Qa4+ {[%emt 0:08:05] [#]} Qc6 {[%emt 0:00:16]} (13... b5 $1 $17 14. Bxd5 bxa4 15. Nxd4 Nxd5) 14. Nxd4 {[%emt 0:00:26]} Qxa4 {[%emt 0:00:11]} 15. Bb5+ {[%emt 0:00:04]} Qxb5 {[%emt 0:00:08]} 16. Nxb5 {[%emt 0:00:02]} Be5 {[%emt 0:03:22]} 17. f4 $17 {[%emt 0:02:36]} ({White should try} 17. Bxa7 $15 O-O 18. O-O) 17... Bb8 {[%emt 0:04:57]} 18. Nxa7 {[%emt 0:04:17]} Rc2 {[%emt 0:04:12]} 19. g3 {[%emt 0:06:31]} Nd5 {[%emt 0:06:36]} 20. Bd4 {[%emt 0:00:53]} Bxa7 {[%emt 0:01:54]} 21. Bxa7 {[%emt 0:00:12]} b6 {[%emt 0:01:07]} 22. Bb8 {[%emt 0:00:06]} Rg2 {[%emt 0:03:36]} 23. Be5 {[%emt 0:04:23]} f6 {[%emt 0:02:55]} 24. Bd4 {[%emt 0:00:11]} Rxg3 {[%emt 0:00:38]} 25. Kf2 {[%emt 0:04:46]} Rb3 {[%emt 0:02:55]} 26. Rhg1 {[%emt 0:03:45]} Kf7 {[%emt 0:01:18]} 27. Rbc1 {[%emt 0:01:37]} Rd3 {[%emt 0:02:22]} 28. Rgd1 {[%emt 0:01:37]} Rxh3 {[%emt 0:01:15]} 29. Rg1 {[%emt 0:01:50]} Rd3 {[%emt 0:02:58]} 30. Rgd1 {[%emt 0:00:05]} Rxd1 {[%emt 0:01:15]} 31. Rxd1 {[%emt 0:00:00]} Rc8 {[%emt 0:00:30]} 32. b3 {[%emt 0:04:12]} Nxf4 {[%emt 0:05:45]} 33. Bxb6 {[%emt 0:00:18]} Rb8 {[%emt 0:00:08]} 34. Bc7 {[%emt 0:02:34]} Nh3+ {[%emt 0:00:21]} 35. Kg2 {[%emt 0:00:13]} Rxb3 {[%emt 0:00:08]} 36. Rd7+ {[%emt 0:01:22]} Kg6 {[%emt 0:00:59]} 37. a4 {[%emt 0:00:08]} e5 {[%emt 0:02:52]} 38. a5 {[%emt 0:00:53]} Nf4+ {[%emt 0:00:07]} 39. Kh2 {[%emt 0:00:41]} Rb2+ {[%emt 0:01:23]} 40. Kg3 {[%emt 0:00:38]} Ne2+ {[%emt 0:00:45]} 41. Kh3 {[%emt 0:00:23]} Nd4 {[%emt 0:01:16]} 42. Rd6 {[%emt 0:02:28]} Ra2 {[%emt 0:01:36]} 43. Bb6 {[%emt 0:01:05]} Ra3+ {[%emt 0:01:36]} 44. Kg2 {[%emt 0:00:17]} Nb3 {[%emt 0:00:33]} 45. Rd5 {[%emt 0:00:20]} Kf5 {[%emt 0:00:54]} 46. Rd7 {[%emt 0:00:24]} Kg6 {[%emt 0:02:00]} 47. Ra7 {[%emt 0:00:17]} Nd4 {[%emt 0:02:48]} 48. a6 {[%emt 0:04:33]} h5 {[%emt 0:01:15]} 49. Ra8 {[%emt 0:01:50]} h4 {[%emt 0:00:40]} 50. a7 {[%emt 0:00:40]} h3+ {[%emt 0:00:05]} 51. Kh2 {[%emt 0:00:05]} Nc6 {[%emt 0:02:53]} 52. Bc5 {[%emt 0:00:41]} Ra5 {[%emt 0:00:56]} 53. Bb6 {[%emt 0:00:25]} Ra6 {[%emt 0:04:58]} 54. Bc5 {[%emt 0:02:29]} Kf5 {[%emt 0:01:24]} 55. Rg8 {[%emt 0:03:52]} Nxa7 {[%emt 0:00:27]} 56. Rxg7 {[%emt 0:01:05]} Nb5 {[%emt 0:00:34]} 57. Kxh3 {[%emt 0:00:22]} Rc6 {[%emt 0:00:40]} 58. Bf2 {[%emt 0:03:28]} Rc3+ {[%emt 0:00:11]} 59. Kg2 {[%emt 0:04:03]} Nd6 {[%emt 0:01:28]} 60. Be1 {[%emt 0:04:01]} Rc2+ {[%emt 0:00:08]} 61. Kf3 {[%emt 0:01:23]} Nc4 {[%emt 0:01:51]} 62. Re7 {[%emt 0:00:47]} Rc1 {[%emt 0:01:00]} 63. Bb4 {[%emt 0:02:31]} Rb1 {[%emt 0:00:23]} 64. Bc5 {[%emt 0:01:45]} Rb3+ {[%emt 0:00:36]} 65. Ke2 {[%emt 0:00:29]} Ke4 {[%emt 0:00:28]} 66. Rc7 {[%emt 0:02:59]} Rb2+ {[%emt 0:00:18]} 67. Ke1 {[%emt 0:00:32]} Nd2 {[%emt 0:01:28]} 68. Rd7 {[%emt 0:02:11]} Nf3+ {[%emt 0:00:14]} 69. Kd1 {[%emt 0:00:27]} Rb5 {[%emt 0:00:50]} 70. Rc7 {[%emt 0:00:25]} Kd3 {[%emt 0:01:01]} 71. Kc1 {[%emt 0:01:23]} Nd4 {[%emt 0:00:40]} 72. Bxd4 {[%emt 0:01:26]} Kxd4 {[%emt 0:12:51]} 73. Rf7 {[%emt 0:07:50]} Rb6 {[%emt 0:00:30]} 0-1

[Event "FIDE World Cup O10-A 2024"]
[Site "Batumi"]
[Date "2024.06.27"]
[Round "5.10"]
[White "Wee, Yu Xi Lyndon"]
[Black "Macosay Lopez, Julio David"]
[Result "0-1"]
[ECO "C55"]
[WhiteElo "1408"]
[BlackElo "1607"]
[Annotator "NA RC"]
[PlyCount "132"]
[EventDate "2024.06.23"]
[EventType "swiss"]
[EventCountry "GEO"]
[SourceTitle "playchess.com"]
[Source "ChessBase"]
[SourceQuality "1"]
[TimeControl "5400+30"]

1. e4 {[%emt 0:00:03]} e5 {[%emt 0:00:09]} 2. Nf3 {[%emt 0:00:12]} Nc6 {[%emt 0:00:13]} 3. Bc4 {[%emt 0:00:35]} Nf6 {[%emt 0:00:21]} 4. d3 {[%emt 0:00:35]} h6 {[%emt 0:01:10]} 5. c3 {[%emt 0:00:28]} d6 {[%emt 0:00:31]} 6. Nbd2 {[%emt 0:02:17]} g5 {[%emt 0:00:52]} 7. h3 {[%emt 0:00:15]} Bg7 {[%emt 0:00:18]} 8. Nf1 {[%emt 0:03:03]} O-O {[%emt 0:02:02]} 9. Ng3 {[%emt 0:02:39]} Ne7 {[%emt 0:01:34]} 10. Qb3 {[%emt 0:02:26]} a6 {[%emt 0:02:34]} 11. a4 {[%emt 1:23:27]} b6 {[%emt 0:08:02]} 12. Be3 {[%emt 0:00:00]} d5 {[%emt 0:05:48]} 13. exd5 {[%emt 0:00:00]} Nfxd5 {[%emt 0:00:08]} 14. Nh5 {[%emt 0:00:00]} Bh8 {[%emt 0:06:27]} 15. O-O-O {[%emt 0:00:00]} Nxe3 {[%emt 0:04:29]} 16. fxe3 {[%emt 0:00:00]} Bd7 {[%emt 0:03:12]} 17. Nh2 {[%emt 0:00:00]} b5 {[%emt 0:01:48]} 18. axb5 {[%emt 0:00:00]} axb5 {[%emt 0:00:09]} 19. Bd5 {[%emt 0:00:00]} Nxd5 {[%emt 0:03:39]} 20. Qxd5 {[%emt 0:00:00]} c6 {[%emt 0:00:39]} 21. Qd6 {[%emt 0:00:00]} Be6 {[%emt 0:02:18]} 22. Qxc6 {[%emt 0:00:00]} Bb3 {[%emt 0:00:23]} 23. Qxb5 {[%emt 0:00:00]} Bxd1 {[%emt 0:00:44]} 24. Rxd1 {[%emt 0:00:00]} Ra1+ {[%emt 0:00:21]} 25. Kc2 {[%emt 0:00:00]} Rxd1 {[%emt 0:00:11]} 26. Kxd1 {[%emt 0:00:00]} Qd6 {[%emt 0:55:28]} 27. Ng4 {[%emt 0:00:00]} Rd8 {[%emt 0:00:00]} 28. Kc2 {[%emt 0:00:00]} Qg6 {[%emt 0:00:00]} 29. Ng3 {[%emt 0:00:00]} h5 {[%emt 0:00:00]} 30. Nf2 {[%emt 0:00:00]} Rd6 {[%emt 0:00:00]} 31. Kd2 {[%emt 0:00:00]} Kh7 {[%emt 0:00:00]} 32. Nfe4 {[%emt 0:00:00]} Rb6 {[%emt 0:00:00]} 33. Nxg5+ {[%emt 0:11:00]} Qxg5 {[%emt 0:00:00]} 34. Qxb6 {[%emt 0:00:00]} Qxg3 {[%emt 0:00:00]} 35. Qb7 {[%emt 0:00:00]} Qf2+ {[%emt 0:00:00]} 36. Kd1 {[%emt 0:00:00]} Bg7 {[%emt 0:00:00]} 37. Qf3 {[%emt 0:00:00]} Qxb2 {[%emt 0:00:00]} 38. Qxh5+ {[%emt 0:00:00]} Kg8 {[%emt 0:00:00]} 39. Qg5 {[%emt 0:00:00]} Qxc3 {[%emt 0:00:00]} 40. Qd8+ {[%emt 0:00:00]} Kh7 {[%emt 0:00:00]} 41. Qh4+ {[%emt 0:00:00]} Bh6 {[%emt 0:00:00]} 42. Qe4+ {[%emt 0:00:00]} Kg8 {[%emt 0:00:00]} 43. Ke2 {[%emt 0:00:00]} Qc2+ {[%emt 0:00:00]} 44. Kf1 {[%emt 0:00:00]} Qd1+ {[%emt 0:00:00]} 45. Kf2 {[%emt 0:00:00]} Qd2+ {[%emt 0:00:00]} 46. Kf3 {[%emt 0:00:00]} Qd1+ {[%emt 0:00:00]} 47. Kg3 {[%emt 0:00:00]} Qe1+ {[%emt 0:00:00]} 48. Kf3 {[%emt 0:00:00]} Qf1+ {[%emt 0:00:00]} 49. Kg3 {[%emt 0:00:00]} Qf6 {[%emt 0:00:00]} 50. Qg4+ {[%emt 0:00:00]} Qg6 {[%emt 0:00:00]} 51. Qxg6+ {[%emt 0:00:00]} fxg6 {[%emt 0:00:00]} 52. Kf3 {[%emt 0:00:00]} Kf7 {[%emt 0:00:00]} 53. Ke4 {[%emt 0:00:00]} Ke6 {[%emt 0:00:00]} 54. g4 {[%emt 0:00:00]} Bg5 {[%emt 0:00:00]} 55. d4 {[%emt 0:00:00]} exd4 {[%emt 0:00:00]} 56. Kxd4 {[%emt 0:00:00]} Bh4 {[%emt 0:00:00]} 57. Ke4 {[%emt 0:00:00]} g5 {[%emt 0:00:00]} 58. Kd4 {[%emt 0:00:00]} Bg3 {[%emt 0:00:00]} 59. e4 {[%emt 0:00:00]} Bf4 {[%emt 0:00:00]} 60. Kd3 {[%emt 0:00:00]} Ke5 {[%emt 0:00:00]} 61. Ke2 {[%emt 0:00:00]} Kxe4 {[%emt 0:00:00]} 62. Kf2 {[%emt 0:00:00]} Kd4 {[%emt 0:00:00]} 63. Kf3 {[%emt 0:00:00]} Bd2 {[%emt 0:00:00]} 64. Kg3 {[%emt 0:00:00]} Be1+ {[%emt 0:00:00]} 65. Kh2 {[%emt 0:00:00]} Ke3 {[%emt 0:00:00]} 66. Kg2 {[%emt 0:00:00]} Bh4 {[%emt 0:00:00]} 0-1

[Event "FIDE World Cup O10-A 2024"]
[Site "Batumi"]
[Date "2024.06.27"]
[Round "5.11"]
[White "TURKI, YOUSEF HATTAN A"]
[Black "Kiladze, Giorgi"]
[Result "0-1"]
[ECO "E61"]
[WhiteElo "1401"]
[BlackElo "1552"]
[Annotator "NA RC"]
[PlyCount "86"]
[EventDate "2024.06.23"]
[EventType "swiss"]
[EventCountry "GEO"]
[SourceTitle "playchess.com"]
[Source "ChessBase"]
[SourceQuality "1"]
[TimeControl "5400+30"]

1. d4 {[%emt 1:31:00]} Nf6 {[%emt 0:00:06]} 2. c4 {[%emt 0:00:00]} g6 {[%emt 0:00:04]} 3. Nc3 {[%emt 0:00:00]} Bg7 {[%emt 0:00:04]} 4. Nf3 {[%emt 0:00:00]} O-O {[%emt 0:00:06]} 5. Bg5 {[%emt 0:00:00]} d6 {[%emt 0:01:25]} 6. e3 {[%emt 0:00:00]} h6 {[%emt 0:01:40]} 7. Bxf6 {[%emt 0:00:00]} Bxf6 {[%emt 0:00:38]} 8. Qc2 {[%emt 0:00:00]} Bg7 {[%emt 0:00:48]} 9. Bd3 {[%emt 0:00:00]} b6 {[%emt 0:00:53]} 10. h4 {[%emt 0:00:00]} e6 {[%emt 0:08:49]} 11. h5 {[%emt 0:00:00]} g5 {[%emt 0:00:09]} 12. Nh2 {[%emt 0:00:00]} Na6 {[%emt 0:18:05]} 13. a3 {[%emt 0:00:00]} Bb7 {[%emt 0:01:18]} 14. f4 {[%emt 0:00:00]} c5 {[%emt 0:04:25]} 15. O-O-O {[%emt 0:00:00]} cxd4 {[%emt 0:07:19]} 16. exd4 {[%emt 0:00:00]} f6 {[%emt 0:11:32]} 17. f5 {[%emt 0:00:00]} exf5 {[%emt 0:06:17]} 18. Bxf5 {[%emt 0:00:00]} Nc7 {[%emt 0:11:39]} 19. d5 {[%emt 0:00:00]} Bc8 {[%emt 0:24:43]} 20. Bg6 {[%emt 0:00:00]} Bd7 {[%emt 0:00:00]} 21. Ne4 {[%emt 0:00:00]} Ne8 {[%emt 0:00:00]} 22. Qb3 {[%emt 0:00:00]} f5 {[%emt 0:00:00]} 23. Nc3 {[%emt 0:00:00]} Rb8 {[%emt 0:00:00]} 24. Nf3 {[%emt 0:00:00]} a6 {[%emt 0:00:00]} 25. Nd4 {[%emt 0:00:00]} Nc7 {[%emt 0:00:00]} 26. a4 {[%emt 0:00:00]} Qc8 {[%emt 0:00:00]} 27. Qc2 {[%emt 0:00:00]} b5 {[%emt 0:00:00]} 28. cxb5 {[%emt 0:00:00]} axb5 {[%emt 0:00:00]} 29. axb5 {[%emt 0:00:00]} Nxb5 {[%emt 0:00:00]} 30. Ndxb5 {[%emt 0:00:00]} Bxb5 {[%emt 0:00:00]} 31. Nxb5 {[%emt 0:00:00]} Rxb5 {[%emt 0:00:00]} 32. Qxc8 {[%emt 0:00:00]} Rxc8+ {[%emt 0:00:00]} 33. Kd2 {[%emt 0:00:00]} Rxb2+ {[%emt 0:00:00]} 34. Ke3 {[%emt 0:00:00]} Rc3+ {[%emt 0:00:00]} 35. Rd3 {[%emt 0:00:00]} f4+ {[%emt 0:00:00]} 36. Kf3 {[%emt 0:00:00]} Rxd3+ {[%emt 0:00:00]} 37. Bxd3 {[%emt 0:00:00]} Rd2 {[%emt 0:01:45]} 38. Bf5 {[%emt 0:00:00]} Rb2 {[%emt 0:00:59]} 39. Rc1 {[%emt 0:00:00]} Rb3+ {[%emt 0:00:18]} 40. Ke2 {[%emt 0:00:00]} Re3+ {[%emt 0:00:19]} 41. Kf2 {[%emt 0:00:00]} Bd4 {[%emt 0:01:10]} 42. Kf1 {[%emt 0:00:00]} f3 {[%emt 0:02:40]} 43. gxf3 {[%emt 0:00:00]} Rxf3+ {[%emt 0:00:10]} 0-1